bitfinex/quotes_ETHUSD_20250802
["timestamp","ask_amount","ask_price","bid_price","bid_amount"]
[1754130160107,0.001,3488.2,3487.8,0.4953]
[1754130160401,0.001,3488.2,3487.9,0.8464]
[1754130160702,0.001,3488.2,3488.0,0.5783]
[1754130161010,0.9177,3488.1,3488.0,0.114892]
[1754130161178,0.9177,3488.1,3487.6,4.467]
[1754130161385,0.9177,3488.0,3487.6,4.467]
[1754130161983,0.9177,3487.9,3487.5,0.1432]
[1754130162993,0.001,3488.2,3487.6,0.4953]
[1754130163196,0.001,3488.2,3487.8,0.1432]
[1754130163598,0.9187,3488.2,3487.8,0.1432]
[1754130163796,0.9177,3488.1,3487.8,0.1432]
[1754130164273,0.001,3488.2,3487.8,0.1432]
[1754130164474,0.9177,3488.0,3487.8,0.1432]
[1754130165086,0.001,3488.2,3487.8,0.1432]
[1754130166580,0.9177,3488.1,3487.8,0.1432]
[1754130166807,0.001,3488.2,3487.5,0.1432]
[1754130166808,1.0609,3488.0,3487.5,0.1432]
[1754130166988,0.9177,3487.9,3486.8,0.4953]
[1754130167193,0.9177,3487.9,3487.4,0.2874]
[1754130167394,0.9177,3487.8,3487.0,3.0]
[1754130167708,1.0609,3487.7,3487.2,0.1432]
[1754130167922,0.9177,3487.6,3487.2,0.9904176]
[1754130168101,0.9177,3487.6,3487.1,0.1432]
[1754130168316,0.1432,3487.7,3487.1,0.1432]
[1754130168317,0.9177,3487.5,3487.1,0.1432]
[1754130168518,0.9177,3487.4,3487.1,0.1432]
[1754130168715,0.9177,3487.3,3487.1,0.1432]
[1754130168937,0.1432,3487.7,3487.1,0.6385]
[1754130169110,0.1432,3487.7,3487.2,0.5239763]
[1754130169315,1.0609,3487.9,3487.4,0.1432]
[1754130169827,0.9177,3487.8,3487.4,0.1432]
[1754130170226,0.1432,3487.9,3487.4,0.1432]
[1754130170422,0.9177,3487.7,3487.4,0.1432]
[1754130170638,0.9177,3487.6,3486.8,3.0]
[1754130170839,0.9177,3487.5,3487.1,0.1432]
[1754130171140,0.1432,3487.4,3486.9,0.59709772]
[1754130171316,0.9177,3487.3,3486.9,0.59709772]
[1754130172713,0.1432,3487.4,3486.9,0.59709772]
[1754130173122,0.001,3488.2,3486.9,3.45389772]
[1754130173306,0.9722,3488.2,3487.0,2.06372234]
[1754130173531,0.9712,3488.1,3487.0,2.06372234]
[1754130173725,0.4728,3488.1,3487.0,1.71262234]
[1754130173923,0.4984,3488.0,3487.0,1.71262234]
[1754130174341,0.4984,3488.0,3487.1,0.4898]
[1754130174650,0.4984,3488.0,3487.2,0.55176201]
[1754130175240,0.4728,3487.9,3487.2,0.55176201]
[1754130175445,0.4728,3487.9,3486.7,0.4898]
[1754130175446,0.4984,3487.8,3486.7,0.4898]
[1754130176227,0.4728,3487.7,3486.6,0.862055]
[1754130176425,0.4984,3487.6,3486.6,0.862055]
[1754130176628,0.4728,3487.5,3486.6,0.862055]
[1754130176828,0.4984,3487.4,3486.7,0.4351855]
[1754130177029,0.4728,3487.3,3486.7,0.4351855]
[1754130177349,0.9712,3487.3,3486.6,0.4984]
[1754130177535,0.9712,3487.2,3486.3,4.468]
[1754130177722,0.9712,3487.1,3486.4,3.0]
[1754130177928,0.9712,3487.0,3486.1,3.864159]
[1754130178123,0.9712,3487.0,3486.5,0.002]
[1754130178341,0.9712,3486.9,3486.5,0.002]
[1754130178866,1.727,3487.8,3486.5,0.002]
[1754130179168,0.9712,3486.8,3486.5,0.002]
[1754130179618,0.9712,3486.7,3486.5,0.002]
[1754130180034,0.9712,3486.6,3486.5,0.002]
[1754130180820,0.4984,3486.9,3486.5,0.002]
[1754130181216,4.467,3487.2,3486.5,0.002]
[1754130181422,4.9398,3487.2,3486.5,0.4918]
[1754130181662,0.4984,3487.1,3486.5,0.002]
[1754130181821,0.9712,3487.1,3486.5,0.002]
[1754130182556,0.15061987,3487.9,3486.5,0.002]
[1754130182880,0.9712,3487.0,3486.5,0.002]
[1754130183281,0.1432,3487.0,3486.5,0.635]
[1754130184276,0.9712,3486.9,3486.5,0.002]
[1754130184438,0.9712,3486.9,3486.5,0.1452]
[1754130184648,0.9712,3486.8,3486.5,0.002]
[1754130186086,0.9712,3486.7,3486.5,0.002]
[1754130186650,4.467,3487.3,3486.5,0.002]
[1754130186651,0.9712,3486.6,3486.5,0.002]
[1754130186881,1.1144,3486.6,3486.5,0.002]
[1754130187428,0.616,3486.6,3486.5,0.002]
[1754130188072,0.1432,3486.6,3486.5,0.002]
[1754130188274,0.4984,3486.9,3486.5,0.002]
[1754130188476,0.6416,3486.9,3486.5,0.002]
[1754130188899,0.1432,3486.9,3486.5,0.002]
[1754130189308,0.4984,3487.2,3486.6,0.4898]
[1754130189542,0.6416,3487.2,3486.8,0.1432]
[1754130190190,1.1144,3487.2,3486.8,0.1432]
[1754130190590,0.9712,3487.1,3486.8,0.1432]
[1754130190806,0.1432,3487.0,3486.5,0.1452]
[1754130191007,0.9712,3486.9,3486.5,0.1452]
[1754130191329,0.1432,3487.0,3486.5,0.1452]
[1754130191330,0.9712,3486.8,3486.5,0.1452]
[1754130192307,0.1432,3487.0,3486.5,0.1452]
[1754130193226,1.1144,3487.0,3486.5,0.1452]
[1754130193599,0.9712,3486.9,3486.5,0.1452]
[1754130194120,0.9712,3486.8,3486.5,0.1452]
[1754130194322,0.4728,3486.8,3486.5,0.1452]
[1754130194716,0.1432,3487.0,3486.5,0.002]
[1754130195215,0.9712,3486.9,3486.5,0.002]
[1754130195936,0.1432,3487.0,3486.5,0.002]
[1754130196098,0.9712,3486.8,3486.5,0.002]
[1754130196302,1.1144,3487.0,3486.5,0.002]
[1754130196723,0.1432,3487.0,3486.5,0.4918]
[1754130196930,0.9712,3487.3,3486.5,0.002]
[1754130197129,0.9712,3487.3,3486.9,0.1432]
[1754130197328,0.1432,3487.4,3486.9,0.633]
[1754130197329,4.6102,3487.4,3486.9,0.633]
[1754130197634,0.1432,3487.4,3486.9,0.633]
[1754130198253,0.15061987,3487.9,3487.0,0.4898]
[1754130198400,0.4994,3487.9,3487.5,0.1432]
[1754130200142,0.001,3487.9,3487.5,0.1432]
[1754130200927,0.001,3487.9,3487.0,0.861896]
[1754130200928,0.001,3487.9,3487.6,0.4898]
[1754130201131,0.001,3487.9,3487.8,0.1432]
[1754130201506,0.001,3487.9,3487.8,0.66167136]
[1754130201706,0.001,3487.9,3487.8,0.9841]
[1754130201913,0.001,3487.9,3487.8,0.633]
[1754130202835,0.001,3487.9,3487.8,0.1432]
[1754130203009,0.001,3487.9,3487.8,0.6361]
[1754130203853,0.001,3487.9,3487.8,0.9872]
[1754130204322,0.001,3487.9,3487.8,1.5372]
[1754130204523,0.001,3487.9,3487.8,0.79268738]
[1754130204724,0.001,3487.9,3487.8,0.6361]
[1754130205254,0.001,3487.9,3487.8,0.1432]
[1754130205550,0.918,3487.9,3487.2,0.4929]
[1754130205760,0.918,3487.9,3487.7,0.1432]
[1754130206062,0.917,3487.8,3486.5,0.002]
[1754130206264,0.917,3487.8,3486.7,0.4929]
[1754130206423,0.4284,3487.8,3487.4,0.1432]
[1754130206836,0.917,3487.7,3487.4,0.1432]
[1754130207027,0.917,3487.6,3487.4,0.1432]
[1754130207961,0.4284,3487.5,3487.4,0.1432]
[1754130208255,0.917,3487.5,3487.4,0.1432]
[1754130208423,0.4886,3487.8,3487.4,0.1432]
[1754130208631,0.001,3487.9,3487.4,0.6361]
[1754130208844,0.001,3487.9,3487.7,0.1432]
[1754130209225,0.001,3487.9,3487.8,0.1432]
[1754130210039,0.001,3487.9,3487.5,0.4929]
[1754130210207,0.001,3487.9,3487.8,0.6361]
[1754130210653,0.001,3487.9,3487.8,1.1861]
[1754130210813,0.001,3487.9,3487.8,1.5372]
[1754130213169,0.001,3487.9,3487.8,1.56587136]
[1754130214327,0.001,3487.9,3487.8,1.5372]
[1754130214525,0.001,3487.9,3487.8,5.79778841]
[1754130215352,0.001,3487.9,3487.8,10.26278841]
[1754130217186,0.001,3487.9,3487.8,10.37765841]
[1754130218049,0.001,3487.9,3487.8,10.02655841]
[1754130218403,0.001,3487.9,3487.8,10.37765841]
[1754130220282,0.001,3487.9,3487.8,10.52081149]
[1754130221002,0.001,3487.9,3487.8,10.37765841]
[1754130223665,0.001,3487.9,3487.8,13.24479528]
[1754130224516,0.4886,3489.1,3488.2,3.55]
[1754130224775,0.001,3489.8,3488.4,3.0]
[1754130224921,0.4896,3489.7,3488.7,3.55]
[1754130225118,0.001,3489.8,3489.3,0.1432]
[1754130225428,0.001,3489.8,3489.6,0.1432]
[1754130225722,0.02974679,3490.3,3489.8,3.0]
[1754130225920,0.45814679,3490.3,3490.2,0.1432]
[1754130226134,0.94674679,3490.3,3490.2,7.6072]
[1754130226432,0.94674679,3490.3,3490.2,8.36792]
[1754130226912,0.02974679,3490.3,3490.2,8.36792]
[1754130227113,0.94674679,3490.3,3490.2,8.36792]
[1754130227719,0.94674679,3490.3,3490.2,7.6072]
[1754130228026,0.94674679,3490.3,3490.2,0.1432]
[1754130228211,0.02974679,3490.3,3490.2,0.1432]
[1754130228384,0.917,3490.7,3490.2,0.1432]
[1754130228591,0.917,3490.7,3490.6,0.1432]
[1754130231512,0.05,3490.8,3490.6,0.1432]
[1754130231715,0.974,3490.8,3490.6,0.1432]
[1754130231905,0.924,3490.7,3490.6,0.1432]
[1754130233596,0.05,3490.8,3490.6,0.1432]
[1754130233790,0.974,3490.8,3490.6,0.1432]
[1754130234291,0.924,3491.3,3490.7,0.17184754]
[1754130234524,0.924,3491.3,3490.7,0.1432]
[1754130234724,0.455,3491.3,3491.2,0.1432]
[1754130235038,0.469,3491.5,3491.2,0.1432]
[1754130235334,0.469,3491.5,3491.2,0.5982]
[1754130235335,0.924,3491.5,3491.2,0.5982]
[1754130235512,0.924,3491.5,3491.4,0.1432]
[1754130236725,0.001,3492.3,3491.5,3.0]
[1754130236926,0.001,3492.3,3491.6,0.8321833]
[1754130237145,0.925,3492.3,3491.6,0.8321833]
[1754130237345,0.001,3492.3,3491.7,1.410632]
[1754130237548,0.001,3492.3,3491.7,4.884632]
[1754130237743,0.001,3492.3,3491.7,4.410632]
[1754130237954,0.001,3492.3,3491.9,0.55]
[1754130238152,0.001,3492.3,3492.0,3.0]
[1754130238450,0.001,3492.3,3492.1,0.55]
[1754130238752,0.001,3492.3,3492.0,3.0]
[1754130238904,0.001,3492.3,3492.1,4.461]
[1754130239104,0.924,3492.2,3492.1,4.461]
[1754130240046,0.924,3492.2,3491.9,3.0]
[1754130240354,0.924,3492.1,3491.8,4.46]
[1754130240660,0.001,3492.3,3491.8,4.46]
[1754130240803,0.924,3492.0,3491.8,4.46]
[1754130241007,0.925,3492.3,3491.8,5.07528153]
[1754130241250,0.924,3492.2,3491.8,5.07528153]
[1754130241407,0.001,3492.3,3491.8,5.07528153]
[1754130241604,0.924,3492.1,3491.8,4.46]
[1754130241839,0.924,3492.0,3491.8,4.46]
[1754130242013,0.924,3491.9,3491.7,0.860632]
[1754130242223,0.924,3492.2,3491.7,0.860632]
[1754130242812,0.924,3492.1,3491.7,0.860632]
[1754130243146,0.924,3492.0,3491.7,0.860632]
[1754130243462,0.924,3491.9,3491.7,0.860632]
[1754130243658,0.001,3492.3,3491.7,0.860632]
[1754130243823,0.924,3491.8,3491.7,0.860632]
[1754130244020,0.001,3492.3,3491.7,4.3926952]
[1754130244344,0.925,3492.2,3491.7,4.3926952]
[1754130244545,0.001,3492.2,3491.7,4.3926952]
[1754130244738,0.924,3492.1,3491.7,4.3926952]
[1754130244930,0.001,3492.2,3491.7,4.8666952]
[1754130245134,0.001,3492.2,3491.8,0.93266952]
[1754130245652,0.001,3492.2,3491.8,1.40666952]
[1754130246049,0.924,3492.1,3491.8,5.39166952]
[1754130246231,0.924,3492.1,3491.8,8.39166952]
[1754130246432,0.924,3492.0,3491.9,3.0]
[1754130246757,0.924,3492.0,3491.9,0.1432]
[1754130247456,0.924,3492.0,3491.9,1.004031]
[1754130248576,0.924,3492.0,3490.4,0.72502301]
[1754130248577,1.0672,3492.0,3491.4,0.1432]
[1754130248741,0.1432,3491.5,3490.9,0.861033]
[1754130248943,0.924,3491.4,3491.0,0.1432]
[1754130249277,0.924,3491.3,3491.0,0.1432]
[1754130249873,0.1432,3491.5,3491.0,0.1432]
[1754130250075,0.924,3491.3,3491.0,0.1432]
[1754130250260,0.924,3491.3,3491.2,0.1432]
[1754130250737,0.1432,3491.7,3491.2,0.1432]
[1754130251066,1.0672,3491.7,3491.2,0.1432]
[1754130251272,0.001,3492.2,3491.6,0.1432]
[1754130251455,0.001,3492.2,3491.8,0.1432]
[1754130251863,0.924,3492.1,3491.8,0.1432]
[1754130252060,0.924,3492.0,3491.8,0.1432]
[1754130252249,0.456,3492.2,3491.8,0.1432]
[1754130252571,0.001,3492.2,3491.9,0.0286377]
[1754130252773,0.001,3492.2,3492.1,0.1432]
[1754130254093,0.925,3492.2,3490.8,0.474]
[1754130254390,0.1432,3492.0,3490.5,0.474]
[1754130254544,0.924,3491.9,3491.4,0.1432]
[1754130254736,0.1432,3492.0,3491.4,0.1432]
[1754130254737,0.924,3491.8,3491.4,0.1432]
[1754130254940,0.924,3491.7,3491.4,0.1432]
[1754130255139,0.1432,3492.0,3491.4,0.1432]
[1754130255374,0.924,3492.0,3491.0,0.474]
[1754130255673,0.924,3492.0,3491.8,0.1432]
[1754130255872,0.001,3492.2,3490.8,1.0972]
[1754130255873,0.924,3491.9,3490.8,0.7461]
[1754130256036,0.924,3491.8,3491.5,0.1432]
[1754130256239,0.001,3492.2,3491.5,0.1432]
[1754130256240,0.924,3492.1,3491.5,0.1432]
[1754130256447,0.924,3492.1,3491.7,0.1432]
[1754130256778,0.001,3492.2,3491.7,0.1432]
[1754130257179,0.924,3492.1,3491.0,0.474]
[1754130257356,0.924,3492.1,3491.1,0.15712]
[1754130257545,0.924,3492.1,3492.0,0.1432]
[1754130257741,0.001,3492.2,3492.0,0.1432]
[1754130258186,0.001,3492.2,3492.1,0.02863606]
[1754130258347,0.001,3492.2,3492.1,0.860739]
[1754130259354,0.925,3492.2,3492.0,0.1432]
[1754130259589,0.001,3492.2,3492.0,0.1432]
[1754130259887,0.001,3492.2,3492.0,0.5992]
[1754130260448,0.001,3492.2,3492.1,0.1432]
[1754130260683,0.001,3492.2,3492.1,0.9683]
[1754130260890,0.001,3492.2,3492.1,0.6172]
[1754130261091,0.001,3492.2,3492.1,0.1432]
[1754130261447,0.001,3492.2,3492.1,0.6172]
[1754130262081,0.001,3492.2,3492.1,0.1432]
[1754130262301,0.001,3492.2,3492.1,1.00883606]
[1754130262585,0.001,3492.2,3492.1,0.80421967]
[1754130262788,0.001,3492.2,3492.1,1.70531967]
[1754130263146,0.001,3492.2,3492.1,1.56211967]
[1754130263349,0.001,3492.2,3492.1,1.70531967]
[1754130263782,0.001,3492.2,3492.1,9.17231967]
[1754130264011,0.001,3492.2,3492.1,9.14368361]
[1754130265185,0.001,3492.2,3492.1,8.24258361]
[1754130265485,0.001,3492.2,3492.1,8.59268361]
[1754130267193,0.001,3492.2,3492.1,7.75468361]
[1754130267684,0.905,3492.2,3492.1,3.1432]
[1754130267869,0.905,3492.2,3492.1,0.1432]
[1754130268073,0.001,3492.2,3492.1,0.1432]
[1754130268273,0.001,3492.3,3492.1,0.1432]
[1754130268274,0.001,3492.3,3492.1,0.6291]
[1754130268471,0.001,3492.3,3492.2,0.41137377]
[1754130268850,0.001,3492.3,3492.2,0.52611477]
[1754130269182,0.001,3492.3,3492.2,1.01201477]
[1754130269362,0.001,3492.3,3492.2,1.36311477]
[1754130269564,0.001,3492.3,3492.2,1.39175001]
[1754130270186,0.001,3492.3,3492.2,1.94175001]
[1754130270390,0.001,3492.3,3492.2,1.91311477]
[1754130271088,0.001,3492.3,3492.2,1.36311477]
[1754130271386,0.001,3492.3,3492.2,1.39175001]
[1754130271788,0.001,3492.3,3492.2,7.25527443]
[1754130271968,0.001,3492.3,3492.2,7.22663919]
[1754130272287,0.001,3492.3,3492.2,11.70363919]
[1754130272855,0.001,3492.3,3492.2,12.25363919]
[1754130273155,0.001,3492.3,3492.2,3.52611477]
[1754130273562,0.905,3492.3,3492.2,8.00011477]
[1754130273763,0.905,3492.3,3492.2,3.114741]
[1754130273997,0.001,3492.3,3492.2,0.114741]
[1754130274298,0.001,3492.3,3492.2,0.14337624]
[1754130274499,0.001,3492.3,3492.2,0.114741]
[1754130276298,0.905,3492.3,3492.2,0.114741]
[1754130276597,0.905,3492.3,3492.2,0.8884351]
[1754130276796,0.905,3492.3,3492.2,0.114741]
[1754130279905,30.905,3492.3,3492.2,0.114741]
[1754130280209,0.905,3492.3,3492.2,0.114741]
[1754130280791,0.905,3492.3,3491.4,0.1432]
[1754130280973,0.904,3492.2,3491.4,0.1432]
[1754130281417,0.1432,3491.9,3491.4,0.1432]
[1754130281805,0.904,3491.8,3491.4,0.1432]
[1754130282005,0.1432,3491.9,3491.4,0.1432]
[1754130282210,0.904,3491.7,3491.4,0.1432]
[1754130282410,0.904,3491.6,3491.4,0.1432]
[1754130282706,0.904,3491.5,3491.4,0.1432]
[1754130284982,0.904,3491.5,3490.8,0.002]
[1754130285188,0.904,3491.4,3491.1,0.1432]
[1754130285623,1.0472,3491.3,3490.8,0.1452]
[1754130285824,0.1432,3491.3,3490.8,0.002]
[1754130286029,0.904,3491.2,3490.8,0.002]
[1754130286488,0.1432,3491.3,3490.8,0.002]
[1754130286683,0.904,3491.1,3490.8,0.002]
[1754130287090,0.904,3491.0,3490.8,0.002]
[1754130287382,0.904,3490.9,3490.8,0.002]
[1754130290152,0.904,3491.2,3490.8,0.002]
[1754130290455,0.466,3490.9,3490.8,0.002]
[1754130290633,0.1432,3491.3,3490.8,0.002]
[1754130290948,0.904,3491.4,3490.8,0.002]
[1754130291239,0.904,3491.4,3491.0,0.1432]
[1754130291450,0.1432,3491.7,3491.2,0.1432]
[1754130291593,0.904,3491.3,3491.2,0.1432]
[1754130291934,0.904,3491.3,3490.8,0.002]
[1754130292141,0.8943,3491.2,3490.8,0.002]
[1754130292298,8.21188407,3491.0,3490.8,0.002]
[1754130292706,0.8943,3490.9,3490.8,0.002]
[1754130293135,30.8943,3490.9,3490.8,0.002]
[1754130293446,31.4443,3490.9,3490.8,0.002]
[1754130294747,31.5875,3490.9,3490.8,0.002]
[1754130295105,36.0615,3490.9,3490.8,0.002]
[1754130296099,31.5875,3490.9,3490.8,0.002]
[1754130296536,36.0585,3490.9,3490.8,0.002]
[1754130298940,36.20798038,3490.9,3490.8,0.002]
[1754130299145,6.20798038,3490.9,3490.8,0.002]
[1754130299440,36.20798038,3490.9,3490.8,0.002]
[1754130301843,7.76268038,3490.9,3490.8,0.002]
[1754130302053,8.65698038,3490.9,3490.8,0.002]
[1754130302410,17.27566445,3490.9,3490.8,0.002]
[1754130302658,3.29268038,3490.9,3490.8,0.002]
[1754130302806,7.3502,3491.7,3490.8,0.4878]
[1754130303006,0.1432,3491.5,3490.8,0.9821]
[1754130303220,4.473,3491.6,3490.8,0.3531]
[1754130303426,4.473,3491.6,3490.8,0.002]
[1754130303638,4.0375,3491.5,3491.0,0.1432]
[1754130303838,0.1432,3491.5,3491.0,0.1432]
[1754130304051,4.473,3491.6,3491.2,0.1432]
[1754130304245,4.473,3491.6,3491.3,0.4858]
[1754130304643,3.0,3491.6,3491.3,0.4858]
[1754130305131,3.0,3491.6,3491.2,0.1432]
[1754130305332,4.6192,3491.7,3491.3,0.4858]
[1754130305544,4.6172,3491.7,3491.4,0.4858]
[1754130305782,4.474,3491.7,3491.4,0.1432]
[1754130305969,4.474,3491.7,3491.0,0.4858]
[1754130305970,0.8943,3491.6,3491.3,0.1432]
[1754130306647,4.6172,3491.7,3491.3,0.1432]
[1754130307866,0.1432,3491.7,3491.3,0.1432]
[1754130308165,0.8943,3492.4,3491.6,0.1432]
[1754130308166,5.44057865,3491.8,3491.6,0.1432]
[1754130308864,13.50926272,3491.8,3491.6,0.1432]
[1754130309064,13.50926272,3491.8,3491.3,0.1432]
[1754130309065,1.0375,3491.7,3491.3,0.1432]
[1754130309372,0.8943,3491.6,3491.3,0.1432]
[1754130309728,0.1432,3491.7,3491.3,0.1432]
[1754130310031,0.8943,3491.5,3491.3,0.1432]
[1754130310231,0.8943,3491.4,3490.8,0.002]
[1754130310432,1.0375,3491.4,3490.9,0.1432]
[1754130310661,0.8943,3491.3,3490.9,0.1432]
[1754130310965,0.1432,3491.4,3490.9,0.1432]
[1754130311577,4.6122,3491.4,3491.0,0.8369]
[1754130311875,4.469,3491.4,3491.3,0.1432]
[1754130313547,4.469,3491.4,3490.9,0.002]
[1754130313548,0.4642,3491.7,3490.9,0.002]
[1754130313773,4.9332,3491.7,3491.2,0.1432]
[1754130313978,0.8943,3491.6,3491.2,0.1432]
[1754130314192,4.469,3491.7,3491.2,0.1432]
[1754130314680,0.96857865,3491.8,3491.6,0.1432]
[1754130314975,0.8943,3491.7,3490.9,0.002]
[1754130315179,0.8943,3491.7,3491.4,0.1432]
[1754130315540,0.96857865,3491.8,3491.4,0.1432]
[1754130315740,5.43657865,3491.8,3491.4,0.629]
[1754130315951,0.96857865,3491.8,3491.4,0.629]
[1754130316149,5.43657865,3491.8,3491.4,0.629]
[1754130316537,0.96857865,3491.8,3491.4,0.629]
[1754130316742,5.43557865,3491.8,3491.7,0.1432]
[1754130317986,0.96857865,3491.8,3491.7,0.1432]
[1754130319255,0.96857865,3491.8,3491.7,0.629]
[1754130321269,0.96857865,3491.8,3491.7,0.9801]
[1754130321477,0.96857865,3491.8,3491.7,0.629]
[1754130321987,0.001,3491.8,3491.7,0.629]
[1754130322296,0.001,3491.8,3491.7,0.598]
[1754130323162,0.001,3491.8,3491.7,0.9491]
[1754130325061,0.001,3491.8,3491.7,1.74803084]
[1754130326074,0.001,3491.8,3491.7,0.598]
[1754130327397,0.9446,3491.8,3491.7,0.1432]
[1754130328261,0.001,3491.8,3491.7,0.1432]
[1754130328467,0.9446,3491.8,3491.7,0.1432]
[1754130329786,0.001,3491.8,3491.7,0.1432]
[1754130331306,0.9446,3491.8,3491.7,0.1432]
[1754130331476,0.001,3491.8,3491.7,0.1432]
[1754130332499,0.001,3491.8,3491.7,0.4548]
[1754130332682,0.001,3491.8,3491.7,0.598]
[1754130333904,0.001,3491.8,3491.7,1.4991]
[1754130334213,0.001,3491.8,3491.7,2.23827826]
[1754130334387,0.001,3491.8,3491.7,1.4991]
[1754130334986,0.001,3491.8,3491.7,1.52773934]
[1754130335183,0.001,3491.8,3491.7,7.50641481]
[1754130335416,0.001,3491.8,3491.7,15.54645954]
[1754130336626,0.001,3491.8,3491.7,20.00645954]
[1754130336928,0.001,3491.8,3491.7,22.29371161]
[1754130337212,0.001,3491.8,3491.7,22.46006161]
[1754130339813,0.001,3492.2,3492.1,3.41360642]
[1754130340014,0.001,3492.2,3492.1,6.44224248]
[1754130340215,0.001,3492.2,3492.1,7.36270642]
[1754130340415,0.001,3492.2,3492.1,9.07364674]
[1754130340807,0.001,3492.2,3492.1,13.53364674]
[1754130342218,0.001,3492.2,3492.1,9.86314032]
[1754130342533,0.001,3492.2,3492.1,13.18154674]
[1754130342884,0.001,3492.2,3492.1,10.31794032]
[1754130343115,0.001,3492.2,3492.1,9.86314032]
[1754130343416,0.001,3492.2,3492.1,5.40414032]
[1754130343611,0.001,3492.2,3492.1,9.86314032]
[1754130343991,0.4897,3492.8,3492.1,9.86314032]
[1754130343992,0.4539,3493.4,3492.6,0.55]
[1754130344210,0.9436,3493.4,3492.8,3.0]
[1754130344409,0.9436,3493.4,3492.9,0.0286295]
[1754130344728,0.97373802,3494.4,3493.3,0.1432]
[1754130345019,0.97373802,3494.4,3493.4,4.459]
[1754130345208,0.97373802,3494.4,3493.4,4.91922]
[1754130345397,0.9446,3493.5,3493.4,4.91922]
[1754130346388,0.001,3493.5,3493.4,7.9478454]
[1754130346617,0.001,3493.5,3493.4,8.37402]
[1754130346802,0.001,3493.5,3493.4,7.91922]
[1754130347098,0.001,3493.5,3493.4,8.61242]
[1754130348528,0.9446,3493.5,3493.4,8.06242]
[1754130348705,0.9446,3493.5,3493.4,8.06142]
[1754130349395,0.4549,3493.5,3493.4,8.06142]
[1754130349588,0.001,3493.5,3493.4,8.06142]
[1754130350336,0.001,3493.5,3493.4,8.61142]
[1754130351729,0.001,3493.5,3493.4,9.06622]
[1754130352186,0.001,3493.5,3493.4,8.61142]
[1754130353221,0.001,3493.5,3493.4,3.60342]
[1754130353424,0.9115,3493.5,3493.4,7.6012]
[1754130354520,0.001,3493.5,3493.4,7.6012]
[1754130355631,0.9115,3493.5,3493.4,7.6002]
[1754130356992,0.9115,3493.5,3493.4,8.460439]
[1754130357546,0.9105,3493.8,3493.4,8.460439]
[1754130357844,0.001,3493.9,3493.7,0.1432]
[1754130358052,0.001,3493.9,3493.8,7.457]
[1754130358705,0.9115,3493.9,3493.8,7.457]
[1754130358906,0.9115,3493.9,3493.8,7.60629]
[1754130360143,0.9115,3493.9,3493.8,3.0]
[1754130360333,0.9115,3493.9,3493.8,7.457]
[1754130360730,0.9115,3493.9,3493.7,0.1432]
[1754130360957,0.9105,3493.8,3493.3,4.457]
[1754130361270,0.9105,3493.7,3493.6,0.1432]
[1754130361730,0.9105,3493.7,3493.2,4.457]
[1754130361918,0.9105,3493.7,3492.1,3.4769]
[1754130361919,0.9105,3493.6,3493.5,0.1432]
[1754130365263,0.9105,3493.6,3493.3,0.1432]
[1754130365566,0.9105,3493.5,3493.3,0.1432]
[1754130365757,0.001,3493.9,3493.3,0.1432]
[1754130365956,0.4713,3493.8,3493.3,0.1432]
[1754130366135,0.9105,3493.8,3493.3,0.1432]
[1754130366333,0.9105,3493.7,3493.3,0.1432]
[1754130366538,0.9105,3493.6,3493.3,0.1432]
[1754130366844,0.9105,3493.5,3493.3,0.1432]
[1754130367059,0.001,3493.9,3493.3,0.1432]
[1754130367368,0.9105,3493.8,3493.3,0.1432]
[1754130367671,0.9105,3493.7,3493.3,0.1432]
[1754130367864,0.001,3493.9,3493.3,0.1432]
[1754130368033,0.9105,3493.8,3493.3,0.1432]
[1754130368229,0.9105,3493.7,3493.3,0.1432]
[1754130368445,0.001,3493.9,3493.4,0.0286254]
[1754130368648,0.001,3493.9,3493.8,0.1432]
[1754130369452,0.9115,3493.9,3493.8,0.1432]
[1754130370261,0.9115,3493.9,3493.4,3.0]
[1754130370573,0.9105,3493.8,3493.6,0.1432]
[1754130370770,0.9105,3493.8,3493.3,4.457]
[1754130370972,0.001,3493.9,3493.3,0.1432]
[1754130371269,0.9105,3493.7,3493.0,3.0]
[1754130371476,0.001,3493.9,3493.2,0.1432]
[1754130371676,0.9105,3493.6,3493.2,0.1432]
[1754130371989,0.9105,3493.5,3493.0,3.0]
[1754130372183,0.9105,3493.5,3493.1,0.7457]
[1754130372546,0.9115,3493.9,3493.1,0.7457]
[1754130372771,0.9115,3493.9,3493.5,0.1432]
[1754130372955,0.001,3493.9,3493.5,0.1432]
[1754130373155,0.9105,3493.8,3493.5,0.1432]
[1754130373366,0.001,3493.9,3493.5,0.1432]
[1754130373579,0.9105,3493.7,3493.5,0.1432]
[1754130373890,0.001,3493.9,3493.5,0.1432]
[1754130374050,0.9105,3493.6,3493.5,0.1432]
[1754130374894,0.001,3493.9,3493.5,0.1432]